{"text_format":"1","workbook":"xlsx","n_sheets":2,"sheets":["Pivot","Salg"],"not_rendered":{"charts":0,"images":0,"macros":1,"external_links":0,"defined_names":0,"comments":0,"pivot_tables":1},"unopened":[],"bounds":{"document_bytes":16777216,"sheet_cells":100000,"rows_first":2000,"rows_last":500,"rows_between":2000,"halvings":0,"cell_chars":16384,"cell_head_chars":4096},"cells_cut":0,"cells_raw":0,"read":"whole","date_system":"1900"}

{"sheet":"Pivot","index":0,"n_rows":10,"n_cols":2,"rows_kept":10,"cut":false,"hidden":false,"merged":[]}
["FagBladet, Glaspuster Peter"]
["Firma","(Multiple Items)"]
[]
["Row Labels","Sum of Beløb"]
["Genius EasyMouse Plus",2880]
["HP Business Inkjet 1100d ",11970]
["Logitech Cordless Click!",5040]
["Nokia 15\" TFT",15540]
["PC I 3.0 GHz",14988]
["Grand Total",50418]

{"sheet":"Salg","index":1,"n_rows":100,"n_cols":10,"rows_kept":100,"cut":false,"hidden":false,"merged":[]}
["Fakturanr","Dato","Kundenr.","Firma","Sælger","Gruppe","Model","Stk. pris","Antal","Beløb"]
[1452,"2004-03-28",40,"Tømrer Jens Jensen","Dortea Jensen","Printer","HP Business Inkjet 1100d ",1995,3,{"$f":"Salgstabel[[#This Row],[Antal]]*Salgstabel[[#This Row],[Stk. pris]]","v":5985}]
[1450,"2004-03-28",8,"Revisorhuset","Christian Andersen","Printer","HP Color LaserJet 3700",8995,8,{"$f":"Salgstabel[[#This Row],[Antal]]*Salgstabel[[#This Row],[Stk. pris]]","v":71960}]
[1448,"2004-03-21",26,"Fast Print ApS","Christian Andersen","PC","PC I 3.0 GHz",4996,1,{"$f":"Salgstabel[[#This Row],[Antal]]*Salgstabel[[#This Row],[Stk. pris]]","v":4996}]
[1446,"2004-03-21",28,"Forfatter Skrible Skrable","Pia Petersen","Skærm","Nokia 15\" TFT",1295,5,{"$f":"Salgstabel[[#This Row],[Antal]]*Salgstabel[[#This Row],[Stk. pris]]","v":6475}]
[1444,"2004-03-18",36,"ExpoTjek ApS","Dortea Jensen","PC","PCII 3.50 GHz",6396,5,{"$f":"Salgstabel[[#This Row],[Antal]]*Salgstabel[[#This Row],[Stk. pris]]","v":31980}]
[1442,"2004-03-17",10,"Slagteriet","Pia Petersen","Mus","Logitech Cordless Click!",280,6,{"$f":"Salgstabel[[#This Row],[Antal]]*Salgstabel[[#This Row],[Stk. pris]]","v":1680}]
[1440,"2004-03-16",8,"Revisorhuset","Svend Svensen","PC","PC III 4.0 GHz",8496,6,{"$f":"Salgstabel[[#This Row],[Antal]]*Salgstabel[[#This Row],[Stk. pris]]","v":50976}]
[1438,"2004-03-15",36,"ExpoTjek ApS","Dortea Jensen","Skærm","Nokia 17\" TFT",2495,6,{"$f":"Salgstabel[[#This Row],[Antal]]*Salgstabel[[#This Row],[Stk. pris]]","v":14970}]
[1436,"2004-03-15",4,"Glaspuster Peter","Pia Petersen","Printer","HP Business Inkjet 1100d ",1995,2,{"$f":"Salgstabel[[#This Row],[Antal]]*Salgstabel[[#This Row],[Stk. pris]]","v":3990}]
[1434,"2004-03-15",6,"Peters Data","Pia Petersen","PC","PC Lux 4.50 GHz",11996,10,{"$f":"Salgstabel[[#This Row],[Antal]]*Salgstabel[[#This Row],[Stk. pris]]","v":119960}]
[1434,"2004-03-15",6,"Peters Data","Pia Petersen","PC","PC I 3.0 GHz",4996,5,{"$f":"Salgstabel[[#This Row],[Antal]]*Salgstabel[[#This Row],[Stk. pris]]","v":24980}]
[1434,"2004-03-15",6,"Peters Data","Pia Petersen","Mus","Lenco Typhoon",296,10,{"$f":"Salgstabel[[#This Row],[Antal]]*Salgstabel[[#This Row],[Stk. pris]]","v":2960}]
[1434,"2004-03-15",6,"Peters Data","Pia Petersen","Printer","HP Color LaserJet 3700",8995,1,{"$f":"Salgstabel[[#This Row],[Antal]]*Salgstabel[[#This Row],[Stk. pris]]","v":8995}]
[1432,"2004-03-13",22,"Spedition Vest","Christian Andersen","Printer","Canon i 70 ",1720,2,{"$f":"Salgstabel[[#This Row],[Antal]]*Salgstabel[[#This Row],[Stk. pris]]","v":3440}]
[1430,"2004-03-12",34,"FagBladet","Dortea Jensen","Mus","Genius EasyMouse Plus",48,20,{"$f":"Salgstabel[[#This Row],[Antal]]*Salgstabel[[#This Row],[Stk. pris]]","v":960}]
[1428,"2004-03-12",24,"Vandrehjemmet sneglen","Christian Andersen","PC","PCII 3.50 GHz",6396,20,{"$f":"Salgstabel[[#This Row],[Antal]]*Salgstabel[[#This Row],[Stk. pris]]","v":127920}]
[1426,"2004-03-11",26,"Fast Print ApS","Svend Svensen","Mus","Logitech Cordless Click!",280,1,{"$f":"Salgstabel[[#This Row],[Antal]]*Salgstabel[[#This Row],[Stk. pris]]","v":280}]
[1424,"2004-03-09",24,"Vandrehjemmet sneglen","Svend Svensen","PC","PC Lux 4.50 GHz",11996,10,{"$f":"Salgstabel[[#This Row],[Antal]]*Salgstabel[[#This Row],[Stk. pris]]","v":119960}]
[1424,"2004-03-09",24,"Vandrehjemmet sneglen","Svend Svensen","Mus","Lenco Typhoon",296,6,{"$f":"Salgstabel[[#This Row],[Antal]]*Salgstabel[[#This Row],[Stk. pris]]","v":1776}]
[1424,"2004-03-09",24,"Vandrehjemmet sneglen","Svend Svensen","Mus","Lenco Typhoon",296,10,{"$f":"Salgstabel[[#This Row],[Antal]]*Salgstabel[[#This Row],[Stk. pris]]","v":2960}]
[1422,"2004-03-08",22,"Spedition Vest","Dortea Jensen","PC","PC Lux 4.50 GHz",11996,2,{"$f":"Salgstabel[[#This Row],[Antal]]*Salgstabel[[#This Row],[Stk. pris]]","v":23992}]
[1420,"2004-03-07",20,"Amstsygehuset","Dortea Jensen","Printer","Canon i 70 ",1720,2,{"$f":"Salgstabel[[#This Row],[Antal]]*Salgstabel[[#This Row],[Stk. pris]]","v":3440}]
[1418,"2004-03-07",8,"Revisorhuset","Christian Andersen","Mus","Genius EasyMouse Plus",48,7,{"$f":"Salgstabel[[#This Row],[Antal]]*Salgstabel[[#This Row],[Stk. pris]]","v":336}]
[1416,"2004-03-06",18,"Amtsgården","Christian Andersen","PC","PCII 3.50 GHz",6396,10,{"$f":"Salgstabel[[#This Row],[Antal]]*Salgstabel[[#This Row],[Stk. pris]]","v":63960}]
[1414,"2004-03-06",4,"Glaspuster Peter","Pia Petersen","Mus","Logitech Cordless Click!",280,6,{"$f":"Salgstabel[[#This Row],[Antal]]*Salgstabel[[#This Row],[Stk. pris]]","v":1680}]
[1412,"2004-03-05",30,"KLPO A/S","Svend Svensen","PC","PC III 4.0 GHz",8496,4,{"$f":"Salgstabel[[#This Row],[Antal]]*Salgstabel[[#This Row],[Stk. pris]]","v":33984}]
[1412,"2004-03-05",30,"KLPO A/S","Svend Svensen","Skærm","Nokia 17\" TFT",2495,25,{"$f":"Salgstabel[[#This Row],[Antal]]*Salgstabel[[#This Row],[Stk. pris]]","v":62375}]
[1410,"2004-03-04",24,"Vandrehjemmet sneglen","Christian Andersen","Printer","HP Business Inkjet 1100d ",1995,8,{"$f":"Salgstabel[[#This Row],[Antal]]*Salgstabel[[#This Row],[Stk. pris]]","v":15960}]
[1408,"2004-03-04",12,"Beregner J Jonsen","Christian Andersen","Printer","HP Color LaserJet 3700",8995,2,{"$f":"Salgstabel[[#This Row],[Antal]]*Salgstabel[[#This Row],[Stk. pris]]","v":17990}]
[1406,"2004-03-04",4,"Glaspuster Peter","Pia Petersen","PC","PC I 3.0 GHz",4996,1,{"$f":"Salgstabel[[#This Row],[Antal]]*Salgstabel[[#This Row],[Stk. pris]]","v":4996}]
[1406,"2004-03-04",4,"Glaspuster Peter","Pia Petersen","Skærm","Nokia 15\" TFT",1295,4,{"$f":"Salgstabel[[#This Row],[Antal]]*Salgstabel[[#This Row],[Stk. pris]]","v":5180}]
[1404,"2004-03-04",14,"Købmands-Centralen","Svend Svensen","Printer","HP Color LaserJet 3700",8995,3,{"$f":"Salgstabel[[#This Row],[Antal]]*Salgstabel[[#This Row],[Stk. pris]]","v":26985}]
[1402,"2004-03-04",2,"PN Byggeservice A/S","Svend Svensen","PC","PC I 3.0 GHz",4996,10,{"$f":"Salgstabel[[#This Row],[Antal]]*Salgstabel[[#This Row],[Stk. pris]]","v":49960}]
[1452,"2004-02-28",40,"Tømrer Jens Jensen","Dortea Jensen","Printer","HP Business Inkjet 1100d ",1995,3,{"$f":"Salgstabel[[#This Row],[Antal]]*Salgstabel[[#This Row],[Stk. pris]]","v":5985}]
[1450,"2004-02-28",8,"Revisorhuset","Christian Andersen","Printer","HP Color LaserJet 3700",8995,8,{"$f":"Salgstabel[[#This Row],[Antal]]*Salgstabel[[#This Row],[Stk. pris]]","v":71960}]
[1448,"2004-02-21",26,"Fast Print ApS","Christian Andersen","PC","PC I 3.0 GHz",4996,1,{"$f":"Salgstabel[[#This Row],[Antal]]*Salgstabel[[#This Row],[Stk. pris]]","v":4996}]
[1446,"2004-02-21",28,"Forfatter Skrible Skrable","Pia Petersen","Skærm","Nokia 15\" TFT",1295,5,{"$f":"Salgstabel[[#This Row],[Antal]]*Salgstabel[[#This Row],[Stk. pris]]","v":6475}]
[1444,"2004-02-18",36,"ExpoTjek ApS","Dortea Jensen","PC","PCII 3.50 GHz",6396,5,{"$f":"Salgstabel[[#This Row],[Antal]]*Salgstabel[[#This Row],[Stk. pris]]","v":31980}]
[1442,"2004-02-17",10,"Slagteriet","Pia Petersen","Mus","Logitech Cordless Click!",280,6,{"$f":"Salgstabel[[#This Row],[Antal]]*Salgstabel[[#This Row],[Stk. pris]]","v":1680}]
[1440,"2004-02-16",8,"Revisorhuset","Svend Svensen","PC","PC III 4.0 GHz",8496,6,{"$f":"Salgstabel[[#This Row],[Antal]]*Salgstabel[[#This Row],[Stk. pris]]","v":50976}]
[1438,"2004-02-15",36,"ExpoTjek ApS","Dortea Jensen","Skærm","Nokia 17\" TFT",2495,6,{"$f":"Salgstabel[[#This Row],[Antal]]*Salgstabel[[#This Row],[Stk. pris]]","v":14970}]
[1436,"2004-02-15",4,"Glaspuster Peter","Pia Petersen","Printer","HP Business Inkjet 1100d ",1995,2,{"$f":"Salgstabel[[#This Row],[Antal]]*Salgstabel[[#This Row],[Stk. pris]]","v":3990}]
[1434,"2004-02-15",6,"Peters Data","Pia Petersen","PC","PC Lux 4.50 GHz",11996,10,{"$f":"Salgstabel[[#This Row],[Antal]]*Salgstabel[[#This Row],[Stk. pris]]","v":119960}]
[1434,"2004-02-15",6,"Peters Data","Pia Petersen","PC","PC I 3.0 GHz",4996,5,{"$f":"Salgstabel[[#This Row],[Antal]]*Salgstabel[[#This Row],[Stk. pris]]","v":24980}]
[1434,"2004-02-15",6,"Peters Data","Pia Petersen","Mus","Lenco Typhoon",296,10,{"$f":"Salgstabel[[#This Row],[Antal]]*Salgstabel[[#This Row],[Stk. pris]]","v":2960}]
[1434,"2004-02-15",6,"Peters Data","Pia Petersen","Printer","HP Color LaserJet 3700",8995,1,{"$f":"Salgstabel[[#This Row],[Antal]]*Salgstabel[[#This Row],[Stk. pris]]","v":8995}]
[1432,"2004-02-13",22,"Spedition Vest","Christian Andersen","Printer","Canon i 70 ",1720,2,{"$f":"Salgstabel[[#This Row],[Antal]]*Salgstabel[[#This Row],[Stk. pris]]","v":3440}]
[1430,"2004-02-12",34,"FagBladet","Dortea Jensen","Mus","Genius EasyMouse Plus",48,20,{"$f":"Salgstabel[[#This Row],[Antal]]*Salgstabel[[#This Row],[Stk. pris]]","v":960}]
[1428,"2004-02-12",24,"Vandrehjemmet sneglen","Christian Andersen","PC","PCII 3.50 GHz",6396,20,{"$f":"Salgstabel[[#This Row],[Antal]]*Salgstabel[[#This Row],[Stk. pris]]","v":127920}]
[1426,"2004-02-11",26,"Fast Print ApS","Svend Svensen","Mus","Logitech Cordless Click!",280,1,{"$f":"Salgstabel[[#This Row],[Antal]]*Salgstabel[[#This Row],[Stk. pris]]","v":280}]
[1424,"2004-02-09",24,"Vandrehjemmet sneglen","Svend Svensen","PC","PC Lux 4.50 GHz",11996,10,{"$f":"Salgstabel[[#This Row],[Antal]]*Salgstabel[[#This Row],[Stk. pris]]","v":119960}]
[1424,"2004-02-09",24,"Vandrehjemmet sneglen","Svend Svensen","Mus","Lenco Typhoon",296,6,{"$f":"Salgstabel[[#This Row],[Antal]]*Salgstabel[[#This Row],[Stk. pris]]","v":1776}]
[1424,"2004-02-09",24,"Vandrehjemmet sneglen","Svend Svensen","Mus","Lenco Typhoon",296,10,{"$f":"Salgstabel[[#This Row],[Antal]]*Salgstabel[[#This Row],[Stk. pris]]","v":2960}]
[1422,"2004-02-08",22,"Spedition Vest","Dortea Jensen","PC","PC Lux 4.50 GHz",11996,2,{"$f":"Salgstabel[[#This Row],[Antal]]*Salgstabel[[#This Row],[Stk. pris]]","v":23992}]
[1420,"2004-02-07",20,"Amstsygehuset","Dortea Jensen","Printer","Canon i 70 ",1720,2,{"$f":"Salgstabel[[#This Row],[Antal]]*Salgstabel[[#This Row],[Stk. pris]]","v":3440}]
[1418,"2004-02-07",8,"Revisorhuset","Christian Andersen","Mus","Genius EasyMouse Plus",48,7,{"$f":"Salgstabel[[#This Row],[Antal]]*Salgstabel[[#This Row],[Stk. pris]]","v":336}]
[1416,"2004-02-06",18,"Amtsgården","Christian Andersen","PC","PCII 3.50 GHz",6396,10,{"$f":"Salgstabel[[#This Row],[Antal]]*Salgstabel[[#This Row],[Stk. pris]]","v":63960}]
[1414,"2004-02-06",4,"Glaspuster Peter","Pia Petersen","Mus","Logitech Cordless Click!",280,6,{"$f":"Salgstabel[[#This Row],[Antal]]*Salgstabel[[#This Row],[Stk. pris]]","v":1680}]
[1412,"2004-02-05",30,"KLPO A/S","Svend Svensen","PC","PC III 4.0 GHz",8496,4,{"$f":"Salgstabel[[#This Row],[Antal]]*Salgstabel[[#This Row],[Stk. pris]]","v":33984}]
[1412,"2004-02-05",30,"KLPO A/S","Svend Svensen","Skærm","Nokia 17\" TFT",2495,25,{"$f":"Salgstabel[[#This Row],[Antal]]*Salgstabel[[#This Row],[Stk. pris]]","v":62375}]
[1410,"2004-02-04",24,"Vandrehjemmet sneglen","Christian Andersen","Printer","HP Business Inkjet 1100d ",1995,8,{"$f":"Salgstabel[[#This Row],[Antal]]*Salgstabel[[#This Row],[Stk. pris]]","v":15960}]
[1408,"2004-02-04",12,"Beregner J Jonsen","Christian Andersen","Printer","HP Color LaserJet 3700",8995,2,{"$f":"Salgstabel[[#This Row],[Antal]]*Salgstabel[[#This Row],[Stk. pris]]","v":17990}]
[1406,"2004-02-04",4,"Glaspuster Peter","Pia Petersen","PC","PC I 3.0 GHz",4996,1,{"$f":"Salgstabel[[#This Row],[Antal]]*Salgstabel[[#This Row],[Stk. pris]]","v":4996}]
[1406,"2004-02-04",4,"Glaspuster Peter","Pia Petersen","Skærm","Nokia 15\" TFT",1295,4,{"$f":"Salgstabel[[#This Row],[Antal]]*Salgstabel[[#This Row],[Stk. pris]]","v":5180}]
[1404,"2004-02-04",14,"Købmands-Centralen","Svend Svensen","Printer","HP Color LaserJet 3700",8995,3,{"$f":"Salgstabel[[#This Row],[Antal]]*Salgstabel[[#This Row],[Stk. pris]]","v":26985}]
[1402,"2004-02-04",2,"PN Byggeservice A/S","Svend Svensen","PC","PC I 3.0 GHz",4996,10,{"$f":"Salgstabel[[#This Row],[Antal]]*Salgstabel[[#This Row],[Stk. pris]]","v":49960}]
[1452,"2004-01-28",40,"Tømrer Jens Jensen","Dortea Jensen","Printer","HP Business Inkjet 1100d ",1995,3,{"$f":"Salgstabel[[#This Row],[Antal]]*Salgstabel[[#This Row],[Stk. pris]]","v":5985}]
[1450,"2004-01-28",8,"Revisorhuset","Christian Andersen","Printer","HP Color LaserJet 3700",8995,8,{"$f":"Salgstabel[[#This Row],[Antal]]*Salgstabel[[#This Row],[Stk. pris]]","v":71960}]
[1448,"2004-01-21",26,"Fast Print ApS","Christian Andersen","PC","PC I 3.0 GHz",4996,1,{"$f":"Salgstabel[[#This Row],[Antal]]*Salgstabel[[#This Row],[Stk. pris]]","v":4996}]
[1446,"2004-01-21",28,"Forfatter Skrible Skrable","Pia Petersen","Skærm","Nokia 15\" TFT",1295,5,{"$f":"Salgstabel[[#This Row],[Antal]]*Salgstabel[[#This Row],[Stk. pris]]","v":6475}]
[1444,"2004-01-18",36,"ExpoTjek ApS","Dortea Jensen","PC","PCII 3.50 GHz",6396,5,{"$f":"Salgstabel[[#This Row],[Antal]]*Salgstabel[[#This Row],[Stk. pris]]","v":31980}]
[1442,"2004-01-17",10,"Slagteriet","Pia Petersen","Mus","Logitech Cordless Click!",280,6,{"$f":"Salgstabel[[#This Row],[Antal]]*Salgstabel[[#This Row],[Stk. pris]]","v":1680}]
[1440,"2004-01-16",8,"Revisorhuset","Svend Svensen","PC","PC III 4.0 GHz",8496,6,{"$f":"Salgstabel[[#This Row],[Antal]]*Salgstabel[[#This Row],[Stk. pris]]","v":50976}]
[1438,"2004-01-15",36,"ExpoTjek ApS","Dortea Jensen","Skærm","Nokia 17\" TFT",2495,6,{"$f":"Salgstabel[[#This Row],[Antal]]*Salgstabel[[#This Row],[Stk. pris]]","v":14970}]
[1436,"2004-01-15",4,"Glaspuster Peter","Pia Petersen","Printer","HP Business Inkjet 1100d ",1995,2,{"$f":"Salgstabel[[#This Row],[Antal]]*Salgstabel[[#This Row],[Stk. pris]]","v":3990}]
[1434,"2004-01-15",6,"Peters Data","Pia Petersen","PC","PC Lux 4.50 GHz",11996,10,{"$f":"Salgstabel[[#This Row],[Antal]]*Salgstabel[[#This Row],[Stk. pris]]","v":119960}]
[1434,"2004-01-15",6,"Peters Data","Pia Petersen","PC","PC I 3.0 GHz",4996,5,{"$f":"Salgstabel[[#This Row],[Antal]]*Salgstabel[[#This Row],[Stk. pris]]","v":24980}]
[1434,"2004-01-15",6,"Peters Data","Pia Petersen","Mus","Lenco Typhoon",296,10,{"$f":"Salgstabel[[#This Row],[Antal]]*Salgstabel[[#This Row],[Stk. pris]]","v":2960}]
[1434,"2004-01-15",6,"Peters Data","Pia Petersen","Printer","HP Color LaserJet 3700",8995,1,{"$f":"Salgstabel[[#This Row],[Antal]]*Salgstabel[[#This Row],[Stk. pris]]","v":8995}]
[1432,"2004-01-13",22,"Spedition Vest","Christian Andersen","Printer","Canon i 70 ",1720,2,{"$f":"Salgstabel[[#This Row],[Antal]]*Salgstabel[[#This Row],[Stk. pris]]","v":3440}]
[1430,"2004-01-12",34,"FagBladet","Dortea Jensen","Mus","Genius EasyMouse Plus",48,20,{"$f":"Salgstabel[[#This Row],[Antal]]*Salgstabel[[#This Row],[Stk. pris]]","v":960}]
[1428,"2004-01-12",24,"Vandrehjemmet sneglen","Christian Andersen","PC","PCII 3.50 GHz",6396,20,{"$f":"Salgstabel[[#This Row],[Antal]]*Salgstabel[[#This Row],[Stk. pris]]","v":127920}]
[1426,"2004-01-11",26,"Fast Print ApS","Svend Svensen","Mus","Logitech Cordless Click!",280,1,{"$f":"Salgstabel[[#This Row],[Antal]]*Salgstabel[[#This Row],[Stk. pris]]","v":280}]
[1424,"2004-01-09",24,"Vandrehjemmet sneglen","Svend Svensen","PC","PC Lux 4.50 GHz",11996,10,{"$f":"Salgstabel[[#This Row],[Antal]]*Salgstabel[[#This Row],[Stk. pris]]","v":119960}]
[1424,"2004-01-09",24,"Vandrehjemmet sneglen","Svend Svensen","Mus","Lenco Typhoon",296,6,{"$f":"Salgstabel[[#This Row],[Antal]]*Salgstabel[[#This Row],[Stk. pris]]","v":1776}]
[1424,"2004-01-09",24,"Vandrehjemmet sneglen","Svend Svensen","Mus","Lenco Typhoon",296,10,{"$f":"Salgstabel[[#This Row],[Antal]]*Salgstabel[[#This Row],[Stk. pris]]","v":2960}]
[1422,"2004-01-08",22,"Spedition Vest","Dortea Jensen","PC","PC Lux 4.50 GHz",11996,2,{"$f":"Salgstabel[[#This Row],[Antal]]*Salgstabel[[#This Row],[Stk. pris]]","v":23992}]
[1420,"2004-01-07",20,"Amstsygehuset","Dortea Jensen","Printer","Canon i 70 ",1720,2,{"$f":"Salgstabel[[#This Row],[Antal]]*Salgstabel[[#This Row],[Stk. pris]]","v":3440}]
[1418,"2004-01-07",8,"Revisorhuset","Christian Andersen","Mus","Genius EasyMouse Plus",48,7,{"$f":"Salgstabel[[#This Row],[Antal]]*Salgstabel[[#This Row],[Stk. pris]]","v":336}]
[1416,"2004-01-06",18,"Amtsgården","Christian Andersen","PC","PCII 3.50 GHz",6396,10,{"$f":"Salgstabel[[#This Row],[Antal]]*Salgstabel[[#This Row],[Stk. pris]]","v":63960}]
[1414,"2004-01-06",4,"Glaspuster Peter","Pia Petersen","Mus","Logitech Cordless Click!",280,6,{"$f":"Salgstabel[[#This Row],[Antal]]*Salgstabel[[#This Row],[Stk. pris]]","v":1680}]
[1412,"2004-01-05",30,"KLPO A/S","Svend Svensen","PC","PC III 4.0 GHz",8496,4,{"$f":"Salgstabel[[#This Row],[Antal]]*Salgstabel[[#This Row],[Stk. pris]]","v":33984}]
[1412,"2004-01-05",30,"KLPO A/S","Svend Svensen","Skærm","Nokia 17\" TFT",2495,25,{"$f":"Salgstabel[[#This Row],[Antal]]*Salgstabel[[#This Row],[Stk. pris]]","v":62375}]
[1410,"2004-01-04",24,"Vandrehjemmet sneglen","Christian Andersen","Printer","HP Business Inkjet 1100d ",1995,8,{"$f":"Salgstabel[[#This Row],[Antal]]*Salgstabel[[#This Row],[Stk. pris]]","v":15960}]
[1408,"2004-01-04",12,"Beregner J Jonsen","Christian Andersen","Printer","HP Color LaserJet 3700",8995,2,{"$f":"Salgstabel[[#This Row],[Antal]]*Salgstabel[[#This Row],[Stk. pris]]","v":17990}]
[1406,"2004-01-04",4,"Glaspuster Peter","Pia Petersen","PC","PC I 3.0 GHz",4996,1,{"$f":"Salgstabel[[#This Row],[Antal]]*Salgstabel[[#This Row],[Stk. pris]]","v":4996}]
[1406,"2004-01-04",4,"Glaspuster Peter","Pia Petersen","Skærm","Nokia 15\" TFT",1295,4,{"$f":"Salgstabel[[#This Row],[Antal]]*Salgstabel[[#This Row],[Stk. pris]]","v":5180}]
[1404,"2004-01-04",14,"Købmands-Centralen","Svend Svensen","Printer","HP Color LaserJet 3700",8995,3,{"$f":"Salgstabel[[#This Row],[Antal]]*Salgstabel[[#This Row],[Stk. pris]]","v":26985}]
[1402,"2004-01-04",2,"PN Byggeservice A/S","Svend Svensen","PC","PC I 3.0 GHz",4996,10,{"$f":"Salgstabel[[#This Row],[Antal]]*Salgstabel[[#This Row],[Stk. pris]]","v":49960}]